bitfinex-derivatives/quotes_BTCF0:USTF0_20240824
["timestamp","ask_amount","ask_price","bid_price","bid_amount"]
[1724517636163,0.36786158,64358.0,64357.0,0.04860308]
[1724517636368,0.36786158,64358.0,64357.0,0.02432306]
[1724517636972,0.36786158,64358.0,64357.0,0.06447576]
[1724517637171,0.36786158,64358.0,64357.0,0.04019591]
[1724517637572,0.36786158,64358.0,64357.0,0.04019313]
[1724517637974,0.36786158,64358.0,64357.0,0.06447311]
[1724517638175,0.36786158,64358.0,64357.0,0.04019313]
[1724517640272,0.91167558,64358.0,64357.0,0.02432028]
[1724517640577,1.30467558,64358.0,64357.0,0.02732028]
[1724517640882,1.30467558,64358.0,64357.0,0.00404]
[1724517641274,1.30467558,64358.0,64357.0,0.00304]
[1724517641476,0.077662,64352.0,64351.0,0.04611165]
[1724517641682,0.438462,64352.0,64351.0,0.000233]
[1724517641878,0.95115036,64352.0,64351.0,0.000233]
[1724517642077,0.077667,64348.0,64347.0,0.04587865]
[1724517642272,0.077667,64348.0,64347.0,0.07016371]
[1724517642780,0.077707,64348.0,64347.0,0.07016371]
[1724517643781,0.078707,64348.0,64347.0,0.07716371]
[1724517643980,0.078707,64348.0,64347.0,0.07719204]
[1724517644483,0.078707,64348.0,64347.0,0.03128463]
[1724517644978,0.079707,64348.0,64347.0,0.06156855]
[1724517646475,0.079707,64348.0,64347.0,0.03728463]
[1724517647473,0.079707,64348.0,64347.0,0.11495263]
[1724517647474,0.00204,64348.0,64347.0,0.11495263]
[1724517647681,0.00204,64348.0,64347.0,1.04429191]
[1724517647876,0.7815,64353.0,64352.0,0.077662]
[1724517648077,0.7807,64353.0,64352.0,0.52588049]
[1724517648680,0.7807,64353.0,64352.0,0.52592049]
[1724517649387,0.7807,64353.0,64352.0,0.52792049]
[1724517650779,0.7807,64353.0,64352.0,0.52892049]
[1724517651993,0.85841658,64358.0,64352.0,0.52892049]
[1724517652182,0.85841658,64358.0,64355.0,0.06119461]
[1724517652487,0.85841658,64358.0,64356.0,0.02428463]
[1724517652684,0.85841658,64358.0,64357.0,4e-05]
[1724517653184,0.85841658,64358.0,64357.0,0.02432004]
[1724517653784,0.86041658,64358.0,64357.0,0.02432004]
[1724517654088,0.86341658,64358.0,64357.0,0.02432004]
[1724517654283,0.86541658,64358.0,64357.0,0.02432004]
[1724517654890,0.86541658,64358.0,64357.0,4e-05]
[1724517655085,0.86541658,64358.0,64357.0,0.08551411]
[1724517656284,0.86541658,64358.0,64357.0,4e-05]
[1724517656491,0.86541658,64358.0,64357.0,0.02431937]
[1724517656692,1.22621658,64358.0,64357.0,0.08553308]
[1724517656882,0.86541658,64358.0,64357.0,0.02431937]
[1724517657886,0.86541658,64358.0,64357.0,0.04859873]
[1724517658487,0.86541658,64358.0,64357.0,0.02431937]
[1724517659277,0.86541658,64358.0,64357.0,0.04859873]
[1724517659484,0.86541658,64358.0,64357.0,0.02431937]
[1724517660887,1.07541658,64358.0,64357.0,0.0855277]
[1724517661091,1.86392158,64358.0,64357.0,0.04591748]
[1724517661384,0.077656,64357.0,64356.0,0.04591748]
[1724517661778,0.543816,64357.0,64356.0,0.04591748]
[1724517662178,0.543856,64357.0,64356.0,0.04591748]
[1724517662783,0.543856,64357.0,64356.0,0.07019948]
[1724517662983,0.543856,64357.0,64356.0,0.04591748]
[1724517663189,0.546856,64357.0,64356.0,0.07019954]
[1724517663385,0.909656,64357.0,64356.0,0.07019954]
[1724517663585,0.443496,64357.0,64356.0,0.07019954]
[1724517663789,0.909656,64357.0,64356.0,0.07019954]
[1724517663985,0.909656,64357.0,64356.0,0.04591748]
[1724517664492,0.443496,64357.0,64356.0,0.04591748]
[1724517665392,0.521152,64357.0,64356.0,0.04591748]
[1724517665588,0.48998436,64357.0,64354.0,0.04592802]
[1724517665991,0.077659,64354.0,64353.0,0.04592802]
[1724517666192,0.077659,64354.0,64353.0,0.07021046]
[1724517666688,0.077699,64354.0,64353.0,0.07021046]
[1724517666889,0.077699,64354.0,64353.0,0.02428244]
[1724517667097,0.077699,64354.0,64353.0,0.04856316]
[1724517667585,0.077699,64354.0,64353.0,0.08841116]
[1724517667790,0.077699,64354.0,64353.0,0.001]
[1724517667989,0.077699,64354.0,64353.0,0.08840757]
[1724517668186,4e-05,64354.0,64353.0,0.08840757]
[1724517669798,0.78074,64354.0,64353.0,0.16606757]
[1724517670997,0.78074,64354.0,64353.0,0.06412769]
[1724517671185,0.78074,64354.0,64353.0,0.08840723]
[1724517671504,0.78074,64354.0,64353.0,0.001]
[1724517671690,0.78074,64354.0,64353.0,0.08840653]
[1724517672196,0.78074,64354.0,64353.0,0.38029863]
[1724517672402,0.78074,64354.0,64353.0,0.22615791]
[1724517672893,0.78074,64354.0,64353.0,0.26383538]
[1724517673099,0.78074,64354.0,64353.0,0.18731056]
[1724517673395,0.78074,64354.0,64353.0,0.14552125]
[1724517673700,0.78074,64354.0,64353.0,0.04955918]
[1724517673997,0.78074,64354.0,64353.0,0.26385137]
[1724517674191,0.78074,64354.0,64353.0,0.16303332]
[1724517674393,0.78074,64354.0,64353.0,0.18731291]
[1724517675297,5.8e-07,64358.0,64357.0,0.155312]
[1724517675491,5.8e-07,64358.0,64357.0,0.84201312]
[1724517675694,5.8e-07,64358.0,64357.0,1.63051712]
[1724517675995,5.8e-07,64358.0,64357.0,1.73768426]
[1724517676221,5.8e-07,64358.0,64357.0,1.23055712]
[1724517676393,5.8e-07,64358.0,64357.0,1.63055712]
[1724517676897,0.00700058,64358.0,64357.0,1.62937264]
[1724517677406,0.00700058,64358.0,64357.0,1.62935728]
[1724517677703,0.00700058,64358.0,64357.0,1.64877657]
[1724517677907,0.000233,64364.0,64363.0,0.077648]
[1724517678092,0.000233,64364.0,64363.0,0.60529878]
[1724517678598,0.000233,64364.0,64363.0,0.60533878]
[1724517678801,0.000233,64364.0,64363.0,0.52769078]
[1724517678993,0.000233,64364.0,64363.0,0.48589484]
[1724517679199,0.000233,64364.0,64363.0,0.40938822]
[1724517679401,0.009233,64364.0,64363.0,0.48689484]
[1724517679598,0.009233,64364.0,64363.0,0.04958822]
[1724517680002,1.046153,64364.0,64363.0,0.07123075]
[1724517680209,1.453153,64364.0,64363.0,0.00204]
[1724517680398,0.587033,64364.0,64363.0,0.00204]
[1724517680601,1.053153,64364.0,64363.0,0.00204]
[1724517680808,1.453153,64364.0,64363.0,0.00204]
[1724517681204,0.077648,64363.0,64359.0,0.04591612]
[1724517681403,0.40728836,64362.0,64355.0,0.04591612]
[1724517681602,0.5708,64356.0,64355.0,0.04591612]
[1724517682106,0.5708,64356.0,64354.0,0.04591612]
[1724517682107,0.648457,64356.0,64354.0,0.04591612]
[1724517682307,0.2374,64355.0,64354.0,0.04591612]
[1724517682603,0.2374,64355.0,64349.0,0.04595066]
[1724517682604,0.70356,64355.0,64349.0,0.04595066]
[1724517682808,0.5708,64350.0,64349.0,0.04595066]
[1724517683009,0.5708,64350.0,64348.0,0.04595066]
[1724517683203,0.1215,64349.0,64348.0,0.04596311]
[1724517683608,0.1215,64349.0,64333.0,0.01533968]
[1724517683609,0.199165,64349.0,64347.0,0.04596311]
[1724517683909,0.199165,64349.0,64348.0,0.04596311]
[1724517684109,0.199165,64349.0,64347.0,0.04596311]
[1724517684506,0.199165,64349.0,64348.0,0.006]
[1724517685808,0.200165,64349.0,64348.0,0.012]
[1724517686009,0.200165,64349.0,64348.0,0.05796311]
[1724517686312,0.200165,64349.0,64348.0,0.05791799]
[1724517686914,0.001,64349.0,64348.0,0.05791799]
[1724517687112,0.001,64349.0,64348.0,0.012]
[1724517688213,0.078665,64349.0,64348.0,0.012]
[1724517690208,0.001,64349.0,64348.0,0.012]
[1724517690415,0.001,64349.0,64348.0,0.09749746]
[1724517690720,0.001,64349.0,64348.0,0.03628177]
[1724517692916,0.001,64349.0,64348.0,0.012]
[1724517693120,0.001,64349.0,64348.0,0.03142483]
[1724517693314,0.001,64349.0,64348.0,0.05570574]
[1724517693821,0.001,64349.0,64348.0,0.03628106]
[1724517694025,0.000233,64354.0,64348.0,0.90248106]
[1724517694215,0.077651,64361.0,64353.0,0.43846]
[1724517694526,0.077651,64361.0,64358.0,0.04589469]
[1724517694726,0.077651,64361.0,64359.0,0.02427901]
[1724517694918,0.077651,64361.0,64360.0,0.02431901]
[1724517696124,0.077651,64361.0,64360.0,4e-05]
[1724517696429,0.083651,64361.0,64360.0,0.00104]
[1724517696819,0.083651,64361.0,64360.0,0.0253203]
[1724517697427,0.088651,64361.0,64360.0,0.0253203]
[1724517698133,0.090651,64361.0,64360.0,0.05059843]
[1724517698630,0.090651,64361.0,64360.0,0.0263203]
[1724517698838,0.090651,64361.0,64360.0,0.05059857]
[1724517699231,0.090651,64361.0,64360.0,0.0263203]
[1724517699635,0.090651,64361.0,64360.0,0.02631828]
[1724517699836,0.090651,64361.0,64360.0,0.05059665]
[1724517700132,0.090651,64361.0,64360.0,0.02631837]
[1724517700331,0.090651,64361.0,64360.0,0.05059679]
[1724517700740,0.013,64361.0,64360.0,0.05059679]
[1724517701531,0.013,64361.0,64360.0,0.11178972]
[1724517702740,0.013,64361.0,64360.0,0.05059679]
[1724517702926,0.013,64361.0,64360.0,0.02631746]
[1724517703128,0.013,64361.0,64360.0,0.05059492]
[1724517703439,0.013,64361.0,64360.0,0.0991513]
[1724517703835,0.013,64361.0,64360.0,0.07487311]
[1724517704042,0.013,64361.0,64360.0,0.0991512]
[1724517704748,0.013,64361.0,64360.0,0.07487311]
[1724517705542,0.013,64361.0,64360.0,0.09915065]
[1724517706442,0.013,64361.0,64360.0,0.07487311]
[1724517706641,0.013,64361.0,64360.0,0.05059492]
[1724517707041,0.013,64361.0,64360.0,0.07487329]
[1724517707343,0.013,64361.0,64360.0,0.09915236]
[1724517708545,0.013,64361.0,64360.0,0.16034529]
[1724517709435,0.013,64361.0,64360.0,0.09915236]
[1724517709944,0.090651,64361.0,64360.0,0.09915236]
[1724517710941,0.090651,64361.0,64360.0,0.16040766]
[1724517711138,0.013,64361.0,64360.0,0.17680436]
[1724517712040,0.013,64361.0,64360.0,0.20108177]
[1724517712341,0.013,64361.0,64360.0,0.12824848]
[1724517713147,0.013,64361.0,64360.0,0.10396933]
[1724517713335,0.013,64361.0,64360.0,0.12824666]
[1724517715640,0.013,64361.0,64360.0,0.10396933]
[1724517715845,0.013,64361.0,64360.0,0.12824728]
[1724517716045,0.013,64361.0,64360.0,0.12824717]
[1724517716440,0.013,64361.0,64360.0,0.12824707]
[1724517716946,0.090651,64361.0,64360.0,0.05059507]
[1724517717145,0.090651,64361.0,64360.0,0.02631733]
[1724517717444,0.090651,64361.0,64360.0,0.04801941]
[1724517717445,1.00325677,64361.0,64360.0,0.04801941]
[1724517717647,0.956771,64361.0,64360.0,0.00204]
[1724517717837,1.074771,64361.0,64360.0,0.00204]
[1724517718446,0.077653,64359.0,64358.0,0.04597941]
[1724517718651,0.077658,64355.0,64354.0,0.000233]
[1724517718960,0.904618,64355.0,64354.0,0.000233]
[1724517719143,1.304618,64355.0,64354.0,0.000233]
[1724517719341,0.07767,64345.0,64343.0,0.06130098]
[1724517719639,0.9521,64344.0,64339.0,0.06130098]
[1724517719841,0.077681,64336.0,64334.0,0.06130098]
[1724517720343,0.077681,64336.0,64335.0,0.02428875]
[1724517720547,4e-05,64335.0,64334.0,0.06130098]
[1724517720741,4e-05,64335.0,64334.0,0.08559031]
[1724517721348,8e-05,64335.0,64334.0,0.08559031]
[1724517721549,8e-05,64335.0,64329.0,0.07650662]
[1724517721550,0.077683,64334.0,64332.0,0.06130098]
[1724517721952,0.00104,64335.0,64330.0,0.04599248]
[1724517722145,0.00104,64335.0,64327.0,0.06130098]
[1724517722146,0.00104,64335.0,64331.0,0.04599791]
[1724517722345,0.077686,64332.0,64330.0,0.04599791]
[1724517722654,0.077691,64328.0,64327.0,0.04600548]
[1724517722953,0.5708,64331.0,64311.0,0.0001604]
[1724517722954,0.5708,64331.0,64324.0,0.04600548]
[1724517723141,0.3608,64325.0,64319.0,0.04600548]
[1724517723549,0.3608,64325.0,64318.0,0.04600548]
[1724517723741,0.3608,64319.0,64318.0,0.04600548]
[1724517724251,0.36084,64319.0,64318.0,0.04600548]
[1724517724646,0.36084,64319.0,64315.0,0.04600548]
[1724517724849,0.36084,64319.0,64318.0,0.012]
[1724517725348,0.36184,64319.0,64318.0,0.006]
[1724517726553,0.36184,64319.0,64318.0,0.019]
[1724517726554,0.36284,64319.0,64318.0,0.019]
[1724517728051,0.00023317,64328.0,64318.0,0.88544]
[1724517728242,0.00023317,64328.0,64321.0,0.077699]
[1724517728848,0.00023317,64328.0,64327.0,4e-05]
[1724517729550,0.00123317,64328.0,64327.0,4e-05]
[1724517730552,0.00223317,64328.0,64327.0,4e-05]
[1724517731054,0.00123317,64328.0,64327.0,4e-05]
[1724517731247,0.00223317,64328.0,64327.0,0.01304]
[1724517731447,0.00223317,64328.0,64327.0,0.02604]
[1724517732949,0.36303317,64328.0,64327.0,0.02604]
[1724517734644,1.22939317,64328.0,64313.0,0.01605645]
[1724517734847,0.077701,64320.0,64312.0,0.52938548]
[1724517735046,0.077701,64320.0,64312.0,0.52810548]
[1724517735256,0.077701,64320.0,64312.0,0.4821]
[1724517735657,4e-05,64313.0,64312.0,0.4821]
[1724517735960,0.077701,64320.0,64313.0,0.014]
[1724517736459,0.077694,64326.0,64319.0,0.3608]
[1724517736857,0.077695,64325.0,64317.0,0.077703]
[1724517737656,0.077707,64315.0,64313.0,0.001]
[1724517737851,0.001,64320.0,64312.0,0.3628]
[1724517738051,0.078701,64320.0,64317.0,0.001]
[1724517738263,0.077702,64319.0,64317.0,0.001]
[1724517739256,0.077702,64319.0,64312.0,0.3608]
[1724517739456,0.078702,64319.0,64312.0,0.3608]
[1724517739857,0.001,64319.0,64311.0,0.0001604]
[1724517740358,0.077705,64317.0,64311.0,0.0001604]
[1724517740561,0.3608,64315.0,64311.0,0.0001604]
[1724517741457,0.3598,64315.0,64311.0,0.0001604]
[1724517741652,0.437507,64315.0,64312.0,0.002]
[1724517742457,0.07771,64312.0,64311.0,0.0011604]
[1724517742661,0.07771,64312.0,64311.0,0.0031604]
[1724517743462,0.07571,64312.0,64311.0,0.0011604]
[1724517743772,0.29575,64312.0,64311.0,0.0011604]
[1724517744059,0.29575,64312.0,64311.0,0.0001604]
[1724517744362,0.28575,64312.0,64311.0,0.0001604]
[1724517744761,0.28675,64312.0,64311.0,0.0001604]
[1724517745152,0.28575,64312.0,64311.0,0.0001604]
[1724517745357,0.28775,64312.0,64311.0,0.0001604]
[1724517746165,0.28675,64312.0,64311.0,0.0001604]
[1724517746462,0.28775,64312.0,64311.0,0.04616588]
[1724517746665,0.28775,64312.0,64311.0,0.0001604]
[1724517747059,0.00204,64312.0,64311.0,0.0001604]
[1724517747860,0.00204,64312.0,64311.0,0.19236702]
[1724517748459,0.00204,64312.0,64311.0,0.27007802]
[1724517748663,0.00204,64312.0,64311.0,0.31197169]
[1724517751760,0.00204,64312.0,64311.0,0.19627169]
[1724517752157,0.00204,64312.0,64311.0,0.11856069]
[1724517752562,0.00204,64312.0,64311.0,0.19536616]
[1724517752563,0.07975,64312.0,64311.0,0.19536616]
[1724517752754,0.19725,64312.0,64311.0,0.0001604]
[1724517753265,0.40725,64312.0,64311.0,0.0001604]
[1724517753771,0.40725,64312.0,64311.0,0.06161421]
[1724517754464,0.19725,64312.0,64311.0,0.06161421]
[1724517754656,0.19725,64312.0,64311.0,0.0001604]
[1724517754855,0.19625,64312.0,64311.0,0.0001604]
[1724517755061,0.19925,64312.0,64311.0,0.0001604]
[1724517755657,0.19825,64312.0,64311.0,0.0001604]
[1724517755862,0.20025,64312.0,64311.0,0.0001604]
[1724517758560,0.20025,64312.0,64311.0,0.06158867]
[1724517758758,0.56105,64312.0,64311.0,0.06158867]
[1724517758969,0.56105,64312.0,64311.0,0.0001604]
[1724517759565,0.56105,64312.0,64311.0,0.0615963]
[1724517759767,0.56105,64312.0,64311.0,0.0001604]
[1724517759969,0.20025,64312.0,64311.0,0.0001604]
[1724517760360,0.08275,64312.0,64311.0,0.0001604]
[1724517761067,0.00504,64312.0,64311.0,0.0778714]
[1724517761269,0.00504,64312.0,64311.0,0.196278]
[1724517761666,0.00504,64312.0,64311.0,0.22057173]
[1724517762359,0.00504,64312.0,64311.0,0.24486504]
[1724517762570,0.2418,64323.0,64311.0,0.310466]
[1724517762868,0.3616,64324.0,64319.0,0.15452405]
[1724517763176,0.3608,64324.0,64321.0,0.07682305]
[1724517763767,0.3608,64324.0,64319.0,0.077701]
[1724517763768,0.3608,64324.0,64323.0,4e-05]
[1724517764177,0.3718,64324.0,64323.0,4e-05]
[1724517764368,0.3718,64324.0,64323.0,0.02433257]
[1724517764568,0.5978,64324.0,64320.0,0.07682305]
[1724517764775,0.5978,64324.0,64323.0,0.04610139]
[1724517765067,0.5978,64324.0,64320.0,0.06146852]
[1724517765369,0.077697,64323.0,64321.0,0.06146852]
[1724517765573,0.5978,64324.0,64317.0,0.3608]
[1724517765574,0.077699,64322.0,64318.0,0.07682305]
[1724517765774,0.077699,64321.0,64319.0,0.02429324]
[1724517765977,0.077699,64321.0,64320.0,0.02429324]
[1724517766376,0.077699,64321.0,64318.0,0.07682305]
[1724517766377,0.077708,64314.0,64312.0,0.07682305]
[1724517766680,0.2425,64313.0,64310.0,0.43762305]
[1724517766871,0.320209,64313.0,64310.0,0.43762305]
[1724517767068,0.441209,64313.0,64310.0,0.43762305]
[1724517767274,0.441209,64313.0,64312.0,0.06149943]
[1724517767478,0.441209,64313.0,64312.0,0.06145943]
[1724517767673,0.441209,64313.0,64307.0,0.07682305]
[1724517768084,0.443209,64313.0,64307.0,0.07682305]
[1724517769278,0.443209,64313.0,64302.0,0.09218766]
[1724517769279,0.443209,64313.0,64305.0,0.07682305]
[1724517769775,0.444209,64313.0,64305.0,0.07682305]
[1724517769969,0.447209,64313.0,64305.0,0.07682305]
[1724517770172,0.07771,64312.0,64305.0,0.07682305]
[1724517770370,0.003,64313.0,64312.0,0.07771]
[1724517770570,0.005,64313.0,64312.0,0.38509572]
[1724517770779,0.002,64313.0,64312.0,0.48135458]
[1724517770972,0.004,64313.0,64312.0,0.38509544]
[1724517771287,0.004,64313.0,64312.0,0.38509534]
[1724517772073,0.004,64313.0,64312.0,0.53962839]
[1724517772278,0.004,64313.0,64312.0,0.47920572]
[1724517772478,0.005,64313.0,64312.0,0.02429485]
[1724517772683,0.005,64313.0,64311.0,0.07701248]
[1724517772684,0.006,64313.0,64311.0,0.0001604]
[1724517773280,0.07771,64312.0,64311.0,0.0001604]
[1724517773472,0.07775,64312.0,64311.0,0.0001604]
[1724517773673,0.28775,64312.0,64311.0,0.0001604]
[1724517774581,0.29375,64312.0,64311.0,0.0001604]
[1724517775778,0.29775,64312.0,64311.0,0.0001604]
[1724517776183,0.30175,64312.0,64311.0,0.0001604]
[1724517776573,0.29775,64312.0,64311.0,0.02445845]
[1724517776772,0.30875,64312.0,64311.0,0.02445845]
[1724517777178,0.30875,64312.0,64311.0,0.0001604]
[1724517777378,0.30775,64312.0,64311.0,0.0001604]
[1724517777579,0.30775,64312.0,64311.0,0.0244578]
[1724517777884,0.23004,64312.0,64311.0,0.0244578]
[1724517778087,0.02004,64312.0,64311.0,0.0244578]
[1724517778588,0.01904,64312.0,64311.0,0.0244578]
[1724517778979,0.01904,64312.0,64311.0,0.21971693]
[1724517779180,0.01904,64312.0,64311.0,0.14286485]
[1724517779383,0.01004,64312.0,64311.0,0.2197041]
[1724517779590,0.02004,64312.0,64311.0,0.10129705]
[1724517779788,0.02004,64312.0,64311.0,0.0244578]
[1724517780184,0.01904,64312.0,64311.0,0.04389423]
[1724517780386,0.22904,64312.0,64311.0,0.0001604]
[1724517780592,0.22904,64312.0,64311.0,0.02445679]
[1724517780887,0.22904,64312.0,64311.0,0.0001604]
[1724517781689,0.22904,64312.0,64311.0,0.02445798]
[1724517782887,0.22904,64312.0,64311.0,0.0001604]
[1724517783190,0.01904,64312.0,64311.0,0.0244581]
[1724517783795,0.02104,64312.0,64311.0,0.0244581]
[1724517784999,0.23104,64312.0,64311.0,0.0244581]
[1724517785387,0.23104,64312.0,64311.0,0.0001604]
[1724517785782,0.23104,64312.0,64311.0,0.02445883]
[1724517786090,0.23104,64312.0,64311.0,0.0001604]
[1724517787087,0.22004,64312.0,64311.0,0.0001604]
[1724517787290,0.23104,64312.0,64311.0,0.0001604]
[1724517788392,0.22104,64312.0,64311.0,0.0001604]
[1724517788582,0.23104,64312.0,64311.0,0.0001604]
[1724517789587,0.22004,64312.0,64311.0,0.0001604]
[1724517789798,0.22104,64312.0,64311.0,0.0001604]
[1724517790090,0.23404,64312.0,64311.0,0.0001604]
[1724517790295,0.07359008,64312.0,64311.0,0.0001604]
[1724517790597,0.02704,64312.0,64311.0,0.04389801]
[1724517790987,0.02704,64312.0,64311.0,0.02445907]
[1724517791691,0.01404,64312.0,64311.0,0.02445907]
[1724517791996,0.02804,64312.0,64311.0,0.21970518]
[1724517792199,0.02804,64312.0,64311.0,0.14286593]
[1724517792509,0.02804,64312.0,64311.0,0.23505359]
[1724517792696,0.3608,64320.0,64311.0,0.23505359]
[1724517792897,0.077705,64317.0,64314.0,0.07682272]
[1724517793098,0.3608,64320.0,64315.0,0.02429867]
[1724517793297,0.3608,64320.0,64316.0,0.02429867]
[1724517793600,0.3608,64320.0,64317.0,0.02429867]
[1724517793903,0.3608,64320.0,64319.0,4e-05]
[1724517794193,0.3608,64320.0,64319.0,0.02433867]
[1724517794793,0.3748,64320.0,64319.0,0.02433867]
[1724517794993,0.3888,64320.0,64319.0,0.02433867]
[1724517795200,0.028,64320.0,64319.0,0.02433867]
[1724517795498,0.028,64320.0,64319.0,0.21954669]
[1724517795699,0.028,64320.0,64319.0,0.14372397]
[1724517796100,0.028,64320.0,64319.0,0.14372132]
[1724517796300,0.028,64320.0,64319.0,0.16315456]
[1724517796602,0.016,64320.0,64319.0,0.23690898]
[1724517796791,0.077693,64326.0,64319.0,0.31460998]
[1724517796993,0.077693,64326.0,64324.0,0.43756258]
[1724517797402,0.077693,64326.0,64324.0,0.3608]
[1724517797698,0.077693,64326.0,64325.0,0.04608359]
[1724517797909,0.287693,64326.0,64325.0,0.04608359]
[1724517798111,0.287693,64326.0,64325.0,4e-05]
[1724517798402,0.301693,64326.0,64325.0,4e-05]
[1724517798599,0.301693,64326.0,64325.0,0.07037635]
[1724517799003,0.288693,64326.0,64325.0,0.07037635]
[1724517799298,0.013,64326.0,64325.0,0.00104]
[1724517799701,0.013,64326.0,64325.0,0.04708359]
[1724517800018,0.222,64326.0,64325.0,0.00204]
[1724517802704,1.15040284,64326.0,64314.0,0.04604359]
[1724517802897,1.15040284,64326.0,64311.0,0.0001604]
[1724517802898,0.5708,64315.0,64311.0,0.04620399]
[1724517803095,0.07771,64313.0,64311.0,0.04620399]
[1724517803305,0.07771,64313.0,64311.0,0.0001604]
[1724517803706,4e-05,64312.0,64311.0,0.0001604]
[1724517804206,0.46652,64312.0,64311.0,0.0011604]
[1724517804608,0.46652,64312.0,64304.0,0.31761599]
[1724517804609,0.077711,64311.0,64304.0,0.31761599]
[1724517804796,0.077721,64303.0,64302.0,0.04604359]
[1724517805003,0.077723,64302.0,64300.0,0.04604359]
[1724517805496,0.077724,64300.0,64299.0,0.04604359]
[1724517805707,0.077724,64300.0,64290.0,0.447836]
[1724517805708,0.077735,64291.0,64290.0,0.07676258]
[1724517805908,0.438535,64291.0,64289.0,0.0012]
[1724517806602,0.077739,64288.0,64286.0,0.04608903]
[1724517806804,0.2201604,64287.0,64283.0,0.3608]
[1724517807106,0.2201604,64287.0,64276.0,0.3573]
[1724517807107,0.3608,64284.0,64282.0,0.04609482]
[1724517807309,0.438544,64284.0,64282.0,0.04609482]
[1724517807524,0.46668,64283.0,64278.0,0.04609482]
[1724517807813,0.5808,64279.0,64272.0,0.04609482]
[1724517808015,0.5808,64273.0,64270.0,0.04609482]
[1724517808311,0.00014796,64272.0,64266.0,0.04609482]
[1724517809203,4e-05,64268.0,64264.0,0.04609482]
[1724517809402,4e-05,64268.0,64262.0,0.36371081]
[1724517810904,0.00104,64268.0,64267.0,0.01217844]
[1724517811919,0.00204,64268.0,64267.0,0.01217844]
[1724517813606,0.11934,64268.0,64267.0,0.01217844]
[1724517814712,0.11934,64268.0,64267.0,0.01117844]
[1724517817927,0.00204,64268.0,64267.0,0.01117844]
[1724517819912,0.00204,64268.0,64267.0,0.00817844]
[1724517820312,0.00104,64268.0,64267.0,0.00817844]
[1724517820617,0.00204,64268.0,64267.0,0.00817844]
[1724517822215,0.00014796,64272.0,64268.0,0.077763]
[1724517822417,0.00014796,64272.0,64268.0,0.192363]
[1724517822720,0.077757,64274.0,64268.0,0.192363]
[1724517823314,0.001,64272.0,64268.0,0.192363]
[1724517823519,0.00096,64272.0,64268.0,0.192363]
[1724517823719,0.00196,64272.0,64268.0,0.199363]
[1724517824116,0.078757,64274.0,64268.0,0.192363]
[1724517824313,0.079757,64274.0,64268.0,0.199363]
[1724517824621,0.002,64274.0,64272.0,0.438558]
[1724517824819,0.001,64274.0,64273.0,0.46676]
[1724517825024,0.001,64274.0,64273.0,0.86676]
[1724517825421,0.078756,64274.0,64272.0,0.3608]
[1724517826321,0.077756,64274.0,64272.0,0.3608]
[1724517827117,0.22,64273.0,64272.0,0.002]
[1724517827321,0.92786,64273.0,64272.0,0.002]
[1724517827623,1.04606,64273.0,64272.0,0.002]
[1724517827827,1.44606,64273.0,64272.0,0.002]
[1724517828516,0.9793,64273.0,64272.0,0.002]
[1724517828716,1.44606,64273.0,64272.0,0.002]
[1724517828921,1.44606,64273.0,64267.0,0.00017844]
[1724517828922,1.523817,64273.0,64267.0,0.00017844]
[1724517829123,0.3608,64268.0,64267.0,0.00017844]
[1724517829925,0.438563,64268.0,64267.0,0.00017844]
[1724517830524,0.438563,64268.0,64267.0,0.00417844]
[1724517832927,0.446563,64268.0,64267.0,0.00117844]
[1724517833131,1.313363,64268.0,64267.0,0.00117844]
[1724517833627,0.991126,64268.0,64267.0,0.00117844]
[1724517833828,0.07777,64262.0,64257.0,0.10725172]
[1724517834023,0.3608,64258.0,64257.0,0.04610134]
[1724517834225,0.3608,64258.0,64256.0,0.0611569]
[1724517834425,0.077779,64255.0,64254.0,0.0611569]
[1724517834624,0.07778,64254.0,64250.0,0.07676258]
[1724517834932,0.00018022,64253.0,64251.0,0.19527834]
[1724517835120,0.07796222,64253.0,64251.0,0.07676258]
[1724517835324,0.07796222,64253.0,64249.0,0.3608]
[1724517835325,0.07796222,64253.0,64252.0,0.11851707]
[1724517836125,0.077783,64252.0,64251.0,0.06159258]
[1724517836333,0.07779,64246.0,64245.0,0.07697357]
[1724517836525,0.07779,64246.0,64244.0,0.07697357]
[1724517836723,0.07779,64246.0,64245.0,0.07697357]
[1724517837129,0.00023337,64251.0,64239.0,0.16998566]
[1724517837130,0.00023337,64251.0,64244.0,0.07697357]
[1724517837331,0.00023337,64251.0,64248.0,0.07697357]
[1724517837537,0.00023337,64251.0,64242.0,0.09218766]
[1724517837538,0.07801737,64251.0,64249.0,0.19549551]
[1724517837722,0.07801737,64251.0,64247.0,0.07697357]
[1724517837922,0.077746,64249.0,64248.0,0.07697357]
[1724517838133,0.3608,64250.0,64245.0,0.07697357]
[1724517838332,0.3608,64250.0,64247.0,0.06156469]
[1724517838938,0.077789,64247.0,64246.0,0.06156469]
[1724517839328,0.07779,64246.0,64245.0,0.008]
[1724517839639,0.22,64246.0,64242.0,0.06154402]
[1724517839824,0.29779,64246.0,64245.0,0.04616347]
[1724517840026,0.077791,64245.0,64244.0,0.04616347]
[1724517840232,0.077791,64245.0,64238.0,0.06294402]
[1724517840233,0.077798,64239.0,64238.0,0.06294402]
[1724517840429,0.438598,64239.0,64238.0,0.0014]
[1724517840644,0.077798,64239.0,64238.0,0.06294402]
[1724517840841,0.077798,64239.0,64238.0,0.06295843]
[1724517841032,0.077798,64239.0,64238.0,0.06296136]
[1724517841235,0.077798,64239.0,64238.0,0.0014]
[1724517841934,0.078798,64239.0,64238.0,0.0014]
[1724517842137,0.156596,64239.0,64238.0,0.0014]
[1724517842542,0.157596,64239.0,64238.0,0.0094]
[1724517844134,0.079798,64239.0,64238.0,0.0094]
[1724517844940,0.079838,64239.0,64238.0,0.0094]
[1724517845654,0.00204,64239.0,64238.0,0.0094]
[1724517846244,0.00204,64239.0,64238.0,0.0872]
[1724517846451,0.36172,64243.0,64241.0,0.077795]
[1724517846647,0.3608,64243.0,64239.0,0.04599998]
[1724517846854,0.3608,64243.0,64240.0,0.04599998]